fUSD/lending_fUSD_20240214
["ID","MTS","AMOUNT","RATE_DAILY","PERIOD"]
[314037150,1707941438206,-741.27723955,0.00029,2]
[314037151,1707941438218,-420.8888349,0.00029,2]
[314037152,1707941438230,-313.89851893,0.00029,2]
[314037153,1707941438249,-16857.6003077,0.00029,2]
[314037154,1707941438261,-8506.29815018,0.00029,2]
[314037155,1707941438271,-4507.20826637,0.00029,2]
[314037156,1707941438283,-806.55264263,0.00029,2]
[314037157,1707941438292,-850.12,0.00029,2]
[314037158,1707941438301,-47.44722442,0.00029022,2]
[314037159,1707941438326,-113.14277558,0.00029022,2]
[314037160,1707941438335,-157.78621842,0.00029058,2]
[314037161,1707941438345,-180.83,0.00029058,12]
[314037162,1707941438354,-250.0,0.00029137,2]
[314037163,1707941438364,-200.0,0.00029137,2]
[314037164,1707941438374,-160.59,0.00029159,2]
[314037165,1707941438383,-43.78774129,0.00029174,2]
[314037166,1707941438395,-1195.43925594,0.00029174,2]
[314037167,1707941438410,-700.13657119,0.00029174,2]
[314037169,1707941438443,-60.63643158,0.00029174,2]
[314037171,1707941438452,-236.02,0.00029281,2]
[314037173,1707941438462,-829.06857442,0.0002929,2]
[314037175,1707941438473,-2861.66703088,0.0002929,2]
[314037177,1707941438482,-160.59,0.00029297,2]
[314037179,1707941438492,-981.48983578,0.000293,2]
[314037180,1707941438503,-2219.51016422,0.000293,2]
[314037182,1707941438512,-1497.22628778,0.000293,2]
[314037184,1707941438523,-821.90291404,0.000293,2]
[314037186,1707941438534,-271.81469396,0.000293,2]
[314037188,1707941438546,-12926.52730619,0.000293,2]
[314037191,1707941438565,-8797.52879803,0.000293,2]
[314037193,1707941438575,-164.58,0.00029313,2]
[314037195,1707941438584,-396.32,0.00029394,2]
[314037197,1707941438594,-160.59,0.00029434,2]
[314037199,1707941438604,-500.0,0.00029508,2]
[314037201,1707941438614,-160.59,0.00029572,2]
[314037203,1707941438623,-211.72,0.00029616,2]
[314037205,1707941438632,-160.59,0.00029709,2]
[314037207,1707941438642,-1013.57,0.00029752,2]
[314037209,1707941438653,-160.59,0.00029847,2]
[314037211,1707941438662,-160.59,0.00029984,2]
[314037213,1707941438671,-3222.09477903,0.0003,2]
[314037214,1707941438681,-390.58352314,0.000301,2]
[314037216,1707941438690,-848.97,0.00030111,2]
[314037218,1707941438699,-160.59,0.00030122,2]
[314037220,1707941438708,-208.0,0.00030181,2]
[314037222,1707941438718,-1000.0,0.0003025,2]
[314037224,1707941438727,-160.59,0.00030259,2]
[314037226,1707941438736,-163.25,0.00030289,10]
[314037228,1707941438746,-160.59,0.00030397,2]
[314037230,1707941438755,-160.59,0.00030534,2]
[314037232,1707941438764,-236.02,0.00030745,2]
[314037234,1707941438773,-157.78621842,0.00030816,2]
[314037236,1707941438782,-845.16357551,0.00031604,5]
[314037238,1707941438791,-396.32,0.00031658,2]
[314037240,1707941438800,-24000.0,0.000317,10]
[314037242,1707941438809,-32700.29656139,0.00031704,7]
[314037388,1707941440712,-165.24,0.00029219,2]
[314037389,1707941440722,-150.0,0.000317,2]
[314037390,1707941440731,-246.4245378,0.00031704,7]
[314037391,1707941441506,-6619.85716578,0.00031704,7]
[314037392,1707941441517,-50000.0,0.00031704,7]
[314037393,1707941441526,-137180.30988223,0.00031704,7]
[314037394,1707941441536,-8248.78375172,0.00031704,7]
[314037395,1707941441545,-5918.41256848,0.00031704,7]
[314037396,1707941441554,-1505.99439118,0.00031704,5]
[314037397,1707941441566,-312.92560882,0.00031704,5]
[314037398,1707941441575,-1816.89,0.00031704,5]
[314037399,1707941441585,-1843.06,0.00031704,5]
[314037400,1707941441594,-163.25,0.00031704,10]
[314037401,1707941441603,-848.97,0.00031755,2]
[314037402,1707941441613,-453.88787207,0.000318,2]
[314037403,1707941441622,-6186.58749023,0.000318,3]
[314037404,1707941441633,-10116.61851785,0.000318,3]
[314037405,1707941441662,-10378.02457451,0.000318,3]
[314037406,1707941441674,-513.84877829,0.000318,3]
[314037407,1707941441685,-300.0,0.000318,3]
[314037408,1707941441698,-274.25863824,0.000318,3]
[314037409,1707941441712,-1217.53556628,0.000318,3]
[314037410,1707941441722,-208.0,0.00031825,2]
[314037411,1707941441731,-236.02,0.00032209,2]
[314037412,1707941441741,-157.78621842,0.00032574,2]
[314037413,1707941441750,-845.16357551,0.00032789,6]
[314037414,1707941441760,-150.57,0.00032877,2]
[314037415,1707941441769,-391.04947086,0.00033135,4]
[314037416,1707941441779,-195.52473543,0.00033135,4]
[314037417,1707941441788,-5755.10258808,0.00033147,5]
[314037418,1707941441801,-42.27212499,0.00033147,5]
[314037419,1707941441811,-164.3960399,0.00033157,4]
[314037421,1707941441820,-164.3960399,0.00033157,4]
[314037423,1707941441829,-330.5268132,0.00033203,4]
[314037425,1707941441839,-1105.01095114,0.00033226,4]
[314037427,1707941441848,-301.89926065,0.00033275,4]
[314037428,1707941441857,-197.53813485,0.00033323,4]
[314037429,1707941441867,-848.97,0.00033399,2]
[314037430,1707941441876,-208.0,0.00033468,2]
[314037431,1707941441886,-152.63,0.000335,2]
[314037432,1707941441895,-152.63,0.000335,2]
[314037433,1707941441905,-152.63,0.000335,2]
[314037434,1707941441914,-152.63,0.000335,2]
[314037435,1707941441924,-152.63,0.000335,2]
[314037436,1707941441933,-152.63,0.000335,2]
[314037437,1707941441942,-152.63,0.000335,2]
[314037438,1707941441951,-152.63,0.000335,2]
[314037439,1707941441960,-152.63,0.000335,2]
[314037440,1707941441969,-152.63,0.000335,2]
[314037441,1707941441977,-152.63,0.000335,2]
[314037442,1707941441987,-152.63,0.000335,2]
[314037443,1707941441995,-152.63,0.000335,2]
[314037444,1707941442005,-152.63,0.000335,2]
[314037445,1707941442014,-236.02,0.00033673,2]
[314037447,1707941442026,-396.32,0.00033922,2]
[314037448,1707941442035,-845.16357551,0.00033974,6]
[314037449,1707941442044,-442.80652095,0.00034,2]
[314037450,1707941442057,-557.19347905,0.00034,2]
[314037451,1707941442068,-1000.0,0.00034031,2]
[314037452,1707941442077,-157.78621842,0.00034332,2]
[314037453,1707941442087,-600.53,0.00034513,2]
[314037454,1707941442096,-304.11910252,0.0003452,2]
[314037457,1707941443073,-587.88763648,0.0003452,2]
[314037458,1707941443083,-1021.77283287,0.0003452,2]
[314037459,1707941443097,-1704.14634174,0.0003452,2]
[314037460,1707941443110,-267.32835716,0.0003452,2]
[314037461,1707941443122,-329.03805323,0.0003452,2]
[314037462,1707941443133,-135.87394657,0.00034644,2]
[314037463,1707941443147,-14.12605343,0.00034644,2]
[314037464,1707941443158,-249.83,0.00034649,2]
[314037465,1707941443168,-1017.6830018,0.00034789,7]
[314037466,1707941443180,-878.55182591,0.00034789,7]
[314037467,1707941443192,-475.33246739,0.00034789,7]
[314037468,1707941443204,-844.61316534,0.00034789,7]
[314037469,1707941443216,-2581.19425263,0.00034789,7]
[314037470,1707941443226,-1754.73295625,0.0003479,2]
[314037471,1707941443237,-388.93617367,0.0003479,2]
[314037472,1707941443249,-394.96999999,0.0003479,2]
[314037473,1707941443274,-6167.57067439,0.0003479,2]
[314037474,1707941443283,-8706.20980426,0.0003479,2]
[314037475,1707941443292,-8706.20980426,0.0003479,2]
[314037476,1707941443302,-8706.20980426,0.0003479,2]
[314037477,1707941443312,-1338.010109,0.00034794,2]
[314037478,1707941443321,-4983.428378,0.00034794,2]
[314037479,1707941443331,-2284.01530437,0.00034799,2]
[314037480,1707941443340,-2284.01530429,0.00034799,2]
[314037481,1707941443350,-2284.01530429,0.00034799,2]
[314037482,1707941443359,-2284.01530429,0.00034799,2]
[314037483,1707941443368,-1946.0,0.00034806,2]
[314037484,1707941443378,-1231.0,0.00034806,2]
[314037485,1707941443387,-216.0,0.00034806,2]
[314037486,1707941443396,-1254.0,0.00034806,2]
[314037487,1707941443407,-28986.8735654,0.0003488,7]
[314037488,1707941443417,-57500.5321,0.0003489,2]
[314037489,1707941443427,-1784.013479,0.00034931,2]
[314037490,1707941443437,-6644.571171,0.00034931,2]
[314037491,1707941443446,-209.8003,0.00034968,2]
[314037492,1707941443456,-562.86462881,0.00035003,5]
[314037493,1707941443465,-848.97,0.00035043,2]
[314037494,1707941443480,-5797.37471307,0.00035058,8]
[314037495,1707941443490,-2230.016849,0.00035068,2]
[314037496,1707941443500,-8305.713964,0.00035068,2]
[314037497,1707941443509,-208.0,0.00035112,2]
[314037498,1707941443518,-236.02,0.00035137,2]
[314037499,1707941443529,-845.16357551,0.00035159,7]
[314037500,1707941443538,-422.25,0.00035191,2]
[314037501,1707941443547,-422.25,0.00035191,2]
[314037502,1707941443557,-205.97,0.00035191,2]
[314037503,1707941443567,-200.0,0.00035191,5]
[314037504,1707941443577,-3122.023588,0.00035342,2]
[314037505,1707941443586,-11627.999549,0.00035342,2]
[314037506,1707941443596,-200.0,0.00035529,10]
[314037507,1707941443605,-24698.37793711,0.00035564,10]
[314037508,1707941443615,-57973.7471307,0.00035565,9]
[314037509,1707941443624,-166.0,0.000356,5]
[314037510,1707941443633,-152.63,0.000356,3]
[314037511,1707941443642,-152.63,0.000356,3]
[314037512,1707941443655,-152.63,0.000356,3]
[314037513,1707941443664,-152.63,0.000356,3]
[314037514,1707941443673,-152.63,0.000356,3]
[314037515,1707941443683,-152.63,0.000356,3]
[314037516,1707941443692,-152.63,0.000356,3]
[314037517,1707941443701,-152.63,0.000356,3]
[314037518,1707941443710,-152.63,0.000356,3]
[314037519,1707941443720,-152.63,0.000356,3]
[314037520,1707941443729,-152.63,0.000356,3]
[314037521,1707941443739,-152.63,0.000356,3]
[314037522,1707941443750,-152.63,0.000356,3]
[314037523,1707941443761,-152.63,0.000356,3]
[314037524,1707941443772,-8706.20980426,0.00035736,2]
[314037525,1707941443782,-2284.01530429,0.00035736,2]
[314037526,1707941443791,-215.11931399,0.0003589,10]
[314037527,1707941443801,-5797.37471307,0.0003599,9]
[314037528,1707941443812,-12424.0,0.00036,2]
[314037529,1707941443822,-811.21175407,0.00036,2]
[314037530,1707941443832,-3568.026958,0.00036,2]
[314037531,1707941443842,-13289.142342,0.00036,2]
[314037532,1707941443851,-159.81169846,0.00036031,2]
[314037533,1707941443861,-157.78621842,0.0003609,2]
[314037534,1707941443873,-5797.37471307,0.00036121,9]
[314037535,1707941443882,-3827.28715339,0.00036131,7]
[314037536,1707941443891,-229.54807154,0.00036131,7]
[314037537,1707941443901,-396.32,0.00036186,2]
[314037538,1707941443911,-677.0,0.0003623,2]
[314037539,1707941443920,-504.34953,0.0003628,2]
[314037540,1707941443929,-845.16357551,0.00036345,7]
[314037541,1707941443940,-169.81,0.00036438,2]
[314037542,1707941443949,-215.11931397,0.00036645,11]
[314037543,1707941443959,-488.7224169,0.0003665,2]
[314037544,1707941443968,-2306.344017,0.0003665,2]
[314037545,1707941443977,-592.4217933,0.0003665,2]
[314037546,1707941443986,-18393.1380487,0.0003665,2]
[314037547,1707941443995,-44637.0967371,0.0003665,2]
[314037548,1707941444005,-5797.37471307,0.00036654,10]
[314037549,1707941444026,-5797.37471307,0.00036665,10]
[314037550,1707941444035,-848.97,0.00036687,2]
[314037551,1707941444045,-1000.0,0.000367,2]
[314037552,1707941444054,-208.0,0.00036756,7]
[314037553,1707941444064,-5797.37471307,0.00036758,10]
[314037554,1707941444073,-8706.20980426,0.00036768,2]
[314037555,1707941444082,-2284.01530429,0.00036768,2]
[314037556,1707941444091,-500.0,0.00036791,2]
[314037557,1707941444101,-580.15317934,0.000368,2]
[314037558,1707941444111,-150.0,0.000368,20]
[314037559,1707941444120,-177.3,0.000368,2]
[314037560,1707941444129,-506.39042981,0.000368,2]
[314037561,1707941444139,-258.62,0.000368,30]
[314037562,1707941444148,-572.0858,0.000369,2]
[314037563,1707941444160,-258.62,0.00036937,30]
[314037564,1707941444169,-500.0,0.00036937,2]
[314037565,1707941444178,-46378.9977046,0.0003699,10]
[314037566,1707941444187,-5797.37471307,0.0003699,10]
[314037567,1707941444198,-100000.0,0.00037,17]
[314037568,1707941444207,-500.0,0.00037,4]
[314037569,1707941444217,-1000.0,0.00037,6]
[314037570,1707941444226,-250.0,0.00037,2]
[314037571,1707941444235,-150.0,0.00037,2]
[314037572,1707941444244,-300.0,0.00037,2]
[314037573,1707941444253,-1000.0,0.00037,7]
[314037574,1707941444263,-153.43824146,0.00037026,2]
[314037575,1707941444272,-258.62,0.00037074,30]
[314037576,1707941444281,-500.0,0.00037084,2]
[314037577,1707941444290,-2005.6300869,0.00037091,2]
[314037578,1707941444299,-464.9861885,0.00037101,2]
[314037579,1707941444309,-23189.4988523,0.00037106,10]
[314037580,1707941444318,-151.021418,0.00037148,18]
[314037581,1707941444329,-511.04633769,0.00037211,30]
[314037582,1707941444338,-500.0,0.00037231,2]
[314037583,1707941444347,-235.40512823,0.0003726,2]
[314037584,1707941444357,-177.3,0.00037348,2]
[314037585,1707941444366,-166.6944464,0.0003735,7]
[314037586,1707941444375,-152.0,0.00037359,3]
[314037587,1707941444384,-500.0,0.00037378,2]
[314037588,1707941444395,-697.98141504,0.00037433,9]
[314037589,1707941444404,-697.98141499,0.00037433,9]
[314037590,1707941444413,-151.021418,0.00037448,18]
[314037591,1707941444423,-38685.4838389,0.00037448,2]
[314037592,1707941444433,-741600.86778264,0.00037474,3]
[314037593,1707941444442,-15967.6801341,0.00037474,2]
[314037594,1707941444451,-65002.99723122,0.000375,2]
[314037595,1707941444460,-755.4247957,0.00037517,2]
[314037596,1707941444469,-500.0,0.00037524,2]
[314037597,1707941444478,-845.16357551,0.0003753,8]
[314037598,1707941444488,-170.0,0.0003758,45]
[314037599,1707941444497,-152.63,0.000376,3]
[314037600,1707941444506,-152.63,0.000376,3]
[314037601,1707941444515,-152.63,0.000376,3]
[314037602,1707941444525,-152.63,0.000376,3]
[314037603,1707941444534,-152.63,0.000376,3]
[314037604,1707941444543,-152.63,0.000376,3]
[314037605,1707941444553,-152.63,0.000376,3]
[314037606,1707941444562,-152.63,0.000376,3]
[314037607,1707941444571,-152.63,0.000376,3]
[314037608,1707941444581,-152.63,0.000376,3]
[314037609,1707941444592,-152.63,0.000376,3]
[314037610,1707941444602,-152.63,0.000376,3]
[314037611,1707941444612,-152.63,0.000376,3]
[314037612,1707941444622,-152.63,0.000376,3]
[314037613,1707941444633,-150.0,0.00037644,2]
[314037614,1707941444643,-500.0,0.00037671,2]
[314037615,1707941444653,-151.021418,0.00037748,18]
[314037616,1707941444662,-5207.40000001,0.00037799,2]
[314037617,1707941444672,-4184.19489849,0.000378,11]
[314037618,1707941444681,-5000.0,0.000378,3]
[314037619,1707941444690,-8706.20980426,0.00037801,2]
[314037620,1707941444699,-2284.01530429,0.00037801,2]
[314037621,1707941444709,-1231.0,0.00037806,2]
[314037622,1707941444718,-1249.0,0.00037806,2]
[314037623,1707941444728,-1000.0,0.00037813,2]
[314037624,1707941444737,-500.0,0.00037818,2]
[314037625,1707941444746,-164.4767237,0.00037828,7]
[314037626,1707941444755,-157.78621842,0.00037848,2]
[314037627,1707941444764,-548.73414718,0.00037848,2]
[314037628,1707941444774,-790.40942904,0.00037848,2]
[314037629,1707941444783,-1800.80596589,0.00037848,2]
[314037630,1707941444792,-441.2499601,0.00037874,2]
[314037631,1707941444801,-1704.9161568,0.00037874,2]
[314037632,1707941444810,-13542.2222196,0.00037874,2]
[314037633,1707941444819,-32733.8709406,0.00037874,2]
[314037634,1707941444829,-49185.36741421,0.0003788,2]
[314037635,1707941444838,-177.3,0.00037896,2]
[314037636,1707941444847,-346.53618887,0.00037898,4]
[314037637,1707941444857,-155.0,0.00037898,4]
[314037638,1707941444867,-257.13594313,0.00037898,4]
[314037639,1707941444876,-199.32249659,0.000379,2]
[314037640,1707941444885,-142284.11830651,0.000379,2]
[314037641,1707941444899,-277.25040939,0.000379,2]
[314037642,1707941445379,-215.11931397,0.000374,12]
[314037643,1707941445388,-64.18618123,0.000379,2]
[314037644,1707941445400,-741.15268578,0.000379,2]
[314037645,1707941445412,-975.15003434,0.000379,2]
[314037646,1707941445424,-2995.75649984,0.000379,2]
[314037647,1707941445441,-18506.87734149,0.000379,2]
[314037648,1707941445452,-21103.66174145,0.000379,2]
[314037649,1707941445464,-10549.2156,0.000379,2]
[314037650,1707941445489,-622.56932309,0.000379,2]
[314037651,1707941445500,-6027.08099957,0.000379,2]
[314037652,1707941445512,-16481.55646158,0.000379,2]
[314037736,1707941446370,-37452.872118,0.000379,2]
[314037738,1707941446381,-41271.37252604,0.000379,2]
[314037740,1707941446393,-12371.6205,0.000379,2]
[314037741,1707941446404,-61208.69046516,0.000379,2]
[314037743,1707941446415,-12767.9459,0.000379,2]
[314037745,1707941446426,-35708.94137048,0.000379,2]
[314037748,1707941446453,-557.504212,0.0003452,2]
[314037750,1707941446462,-8813.7087498,0.000379,2]
[314037751,1707941446474,-8618.5751076,0.000379,2]
[314037753,1707941446485,-340.51619482,0.000379,2]
[314037755,1707941446496,-9251.39366428,0.000379,2]
[314037757,1707941446511,-39286.0,0.000379,2]
[314037759,1707941446532,-5102.81324247,0.000379,2]
[314037763,1707941446567,-836.256318,0.00034794,2]
[314037765,1707941446576,-128154.57897908,0.000379,2]
[314037767,1707941446585,-3641.87964892,0.000379,2]
[314037768,1707941446595,-151.021518,0.00037948,18]
[314037770,1707941446604,-166.74,0.00037957,2]
[314037772,1707941446613,-500.0,0.00037965,2]
[314037774,1707941446622,-4184.19489841,0.00037991,11]
[314037775,1707941446631,-100000.0,0.00038,18]
[314037777,1707941446640,-1500.0,0.00038,4]
[314037779,1707941446649,-4579.15577611,0.00038,2]
[314038748,1707941718977,1279.55914481,0.00023,2]
[314038749,1707941782353,1000.0,0.00023,2]
[314038750,1707941794266,1000.0,0.00023,2]
[314038751,1707942024110,-1000.0,0.000235,2]
[314038752,1707942024130,-1000.0,0.000239,2]
[314038753,1707942024150,-1000.0,0.00024,2]
[314038754,1707942024173,-1250.0,0.00025,3]
[314038755,1707942399340,-176.02568268,0.00027,3]
[314038759,1707942632332,-1123.97431732,0.00027,3]
[314038760,1707942632341,-1500.0,0.000274,2]
[314038761,1707942632353,-580.01,0.00027671,2]
[314038762,1707942632364,-2981.916,0.00028015,2]
[314038763,1707942632374,-165.72984078,0.00028699,2]
[314038764,1707942632384,-552.36984191,0.000288,2]
[314038765,1707942632400,-830.305015,0.000288,2]
[314038766,1707942632439,-550.0,0.000288,2]
[314038767,1707942632451,-1108.32514309,0.000288,2]
[314038768,1707942632461,-300.0,0.00028898,2]
[314038769,1707942632470,-150.0,0.00028898,2]
[314038770,1707942632479,-48.99727288,0.000289,2]
[314038771,1707942632500,-2096.25729201,0.000289,2]
[314038772,1707942632512,-1141.40303688,0.000289,2]
[314038867,1707942638245,-18597.34239823,0.000289,2]
[314038868,1707942638254,-109.55585677,0.000289,2]
[314038869,1707942639314,-40.44414323,0.000289,2]
[314038870,1707942639327,-499.99,0.0002891,2]
[314038871,1707942639337,-150.99,0.0002891,2]
[314038872,1707942639347,-504.79,0.0002891,2]
[314038873,1707942639357,-808.92693217,0.00029,3]
[314038874,1707942639387,-541.07306783,0.00029,3]
[314038875,1707942639399,-548.36818583,0.000291,3]
[314038876,1707942639410,-165.72984067,0.00029183,2]
[314038877,1707942639419,-150.0,0.00029448,2]
[314038878,1707942639430,-166.7,0.00029513,2]
[314038879,1707942639441,-200.0,0.00029545,2]
[314038880,1707942639451,-600.0,0.00029556,2]
[314038881,1707942639462,-750.0,0.00029564,2]
[314038882,1707942639471,-165.72984067,0.00029666,2]
[314038883,1707942639481,-250.0,0.00029728,2]
[314038884,1707942639492,-3000.0,0.000299,2]
[314038885,1707942639502,-3000.0,0.0002991,2]
[314038886,1707942639512,-3775.533848,0.0002992,2]
[314038887,1707942639522,-580.01,0.00029935,2]
[314038888,1707942639531,-315.44,0.0003003,2]
[314038890,1707942639540,-1500.0,0.000301,2]
[314038891,1707942639549,-165.72984067,0.0003015,2]
[314038893,1707942639559,-1000.0,0.00030299,2]
[314038895,1707942639568,-2000.0,0.00030388,2]
[314038896,1707942639577,-2587.65,0.00030529,2]
[314038898,1707942639586,-23900.0,0.00030535,2]
[314038900,1707942639595,-846.95,0.00030535,2]
[314038902,1707942639604,-165.72984067,0.00030634,2]
[314038904,1707942639613,-402.48,0.00030789,2]
[314038906,1707942639623,-1400.0,0.00031,3]
[314038908,1707942639632,-156.33,0.0003105,2]
[314038910,1707942639640,-178.14381755,0.00031117,12]
[314038912,1707942639649,-875.6893,0.00031117,2]
[314038914,1707942639658,-165.72984067,0.00031118,2]
[314038915,1707942639667,-250.0,0.00031149,2]
[314038916,1707942639676,-250.0,0.00031161,2]
[314038917,1707942639686,-200.0,0.00031177,2]
[314038918,1707942639695,-300.0,0.00031181,3]
[314038919,1707942639704,-549.08990811,0.00031207,2]
[314038920,1707942639714,-549.08990811,0.00031207,2]
[314038921,1707942639723,-549.08990811,0.00031207,2]
[314038922,1707942639732,-3395.92,0.00031217,2]
[314038923,1707942639742,-1079.83991311,0.00031217,2]
[314038924,1707942639756,-1605.49868895,0.00031217,2]
[314038935,1707942644528,-255.29,0.00031217,2]
[314038936,1707942644540,-36550.79139794,0.00031217,2]
[314038937,1707942644549,-4364.8,0.00031217,2]
[314038938,1707942644558,-2898.66,0.00031217,2]
[314038939,1707942644568,-14642.29,0.00031217,2]
[314038940,1707942644577,-200.0,0.00031217,2]
[314038941,1707942644586,-156.33,0.00031281,2]
[314038942,1707942644595,-156.33,0.00031512,2]
[314038943,1707942644605,-1411.965,0.000316,2]
[314038945,1707942644614,-165.72984067,0.00031601,2]
[314038946,1707942644624,-549.08990811,0.00031694,2]
[314038947,1707942644633,-549.08990811,0.00031694,2]
[314038948,1707942644642,-549.08990811,0.00031694,2]
[314038949,1707942644651,-549.08990811,0.00031694,2]
[314038950,1707942644661,-4284.59492888,0.00031704,7]
[314038951,1707942644670,-17564.81333369,0.00031704,7]
[314038952,1707942644679,-13832.15408374,0.00031704,7]
[314038953,1707942644926,-3341.26712149,0.00031704,7]
[314038954,1707942644937,-4157.25532644,0.00031704,7]
[314038955,1707942644948,-5980.58189614,0.00031704,7]
[314038956,1707942645012,-3330.38106943,0.00031704,7]
[314038957,1707942645023,-1135.51776132,0.00031704,7]
[314038958,1707942645035,-2995.33019866,0.00031704,7]
[314038969,1707942645266,-27836.89265647,0.00031704,7]
[314038970,1707942645276,-156.33,0.00031743,2]
[314038971,1707942645286,-210.0,0.00031788,3]
[314038972,1707942645296,-171.08,0.0003197,2]
[314038973,1707942645306,-156.33,0.00031974,2]
[314038974,1707942645316,-400.0,0.00032032,2]
[314038975,1707942645329,-7493.11,0.00032059,2]
[314038976,1707942645342,-846.95,0.00032062,2]
[314038977,1707942645351,-165.72984067,0.00032085,2]
[314038978,1707942645361,-150.0,0.000321,2]
[314038979,1707942645373,-580.01,0.00032199,2]
[314038980,1707942645383,-156.33,0.00032206,2]
[314038981,1707942645392,-549.08990811,0.00032234,2]
[314038982,1707942645402,-7493.11,0.00032244,2]
[314038983,1707942645412,-189.8,0.00032335,120]
[314038984,1707942645422,-500.0,0.00032416,2]
[314038985,1707942645432,-7493.11,0.00032429,2]
[314038986,1707942645441,-156.33,0.00032437,2]
[314038987,1707942645450,-207.0786,0.00032443,2]
[314038988,1707942645460,-564.54,0.00032486,2]
[314038989,1707942645470,-165.72984067,0.00032569,2]
[314038990,1707942645479,-300.0,0.00032587,2]
[314038991,1707942645488,-153.93,0.000326,2]
[314038992,1707942645498,-7493.11,0.00032614,2]
[314038993,1707942645507,-564.54,0.00032657,2]
[314038994,1707942645517,-156.33,0.00032668,2]
[314038995,1707942645526,-7493.11,0.000328,2]
[314038996,1707942645535,-564.54,0.00032828,2]
[314038997,1707942645544,-4364.8,0.00032861,2]
[314038998,1707942645553,-150.96,0.00032877,2]
[314039000,1707942645562,-152.61,0.00032877,2]
[314039002,1707942645571,-4000.0,0.000329,2]
[314039003,1707942645580,-321.0,0.00032916,2]
[314039004,1707942645590,-7493.11,0.00032985,2]
[314039005,1707942645598,-564.54,0.00032999,2]
[314039006,1707942645607,-1450.0,0.00033,3]
[314039007,1707942645616,-527.39000737,0.00033,4]
[314039008,1707942645625,-165.72984067,0.00033053,2]
[314039009,1707942645633,-564.54,0.0003317,2]
[314039010,1707942645642,-7493.11,0.0003317,2]
[314039011,1707942645651,-600.0,0.0003325,2]
[314039012,1707942645660,-564.54,0.00033341,2]
[314039013,1707942645668,-7493.11,0.00033355,2]
[314039014,1707942645677,-4392.82169168,0.00033402,5]
[314039015,1707942645686,-153.72,0.00033492,2]
[314039016,1707942645695,-153.38,0.000335,2]
[314039018,1707942645705,-153.38,0.000335,2]
[314039019,1707942645714,-153.38,0.000335,2]
[314039021,1707942645724,-153.38,0.000335,2]
[314039023,1707942645733,-153.38,0.000335,2]
[314039025,1707942645742,-153.38,0.000335,2]
[314039027,1707942645752,-153.38,0.000335,2]
[314039029,1707942645761,-153.38,0.000335,2]
[314039030,1707942645771,-153.38,0.000335,2]
[314039032,1707942645780,-153.38,0.000335,2]
[314039034,1707942645790,-564.54,0.00033512,2]
[314039035,1707942645799,-4392.82169168,0.00033517,5]
[314039036,1707942645809,-4392.82169168,0.00033531,5]
[314039037,1707942645818,-165.72984067,0.00033536,2]
[314039038,1707942645827,-4507.36443532,0.00033537,4]
[314039039,1707942645836,-7493.11,0.00033541,2]
[314039040,1707942645845,-654.29024291,0.00033562,4]
[314039041,1707942645854,-846.95,0.00033588,2]
[314039042,1707942645863,-214.49324259,0.00033614,4]
[314039043,1707942645873,-2511.11,0.00033637,2]
[314039044,1707942645882,-287.35246673,0.0003364,4]
[314039045,1707942645891,-564.54,0.00033683,2]
[314039046,1707942645901,-4392.82169168,0.00033716,6]
[314039047,1707942645910,-7493.11,0.00033726,2]
[314039048,1707942645920,-166.13,0.00033825,2]
[314039049,1707942645929,-564.54,0.00033854,2]
[314039050,1707942645939,-300.0,0.00033957,2]